[Event "Titled Tuesday Blitz February 22 Late 2022"]
[White "Novikov, Evgenij"]
[Black "Klukin, Kirill"]
[WhiteFideId "4125380"]
[BlackFideId "24199273"]
[WhiteElo "2242"]
[BlackElo "2324"]
[Result "0-1"]
[Round "08"]
[TimeControl "180+1"]
[Date "2022.02.23"]
[WhiteClock "0:00:02"]
[BlackClock "0:00:21"]

1. e4 {[%clk 0:02:57]}  c5 {[%clk 0:02:57]} 2. Nf3 {[%clk 0:02:55]}  Nc6 {[%clk 0:02:57]} 3. Bb5 {[%clk 0:02:54]}  Nf6 {[%clk 0:02:54]} 4. d3 {[%clk 0:02:49]}  d6 {[%clk 0:02:46]} 5. Bxc6+ {[%clk 0:02:47]}  bxc6 {[%clk 0:02:46]} 6. h3 {[%clk 0:02:48]}  e5 {[%clk 0:02:46]} 7. O-O {[%clk 0:02:45]}  Be7 {[%clk 0:02:46]} 8. Nh2 {[%clk 0:02:44]}  O-O {[%clk 0:02:46]} 9. f4 {[%clk 0:02:44]}  exf4 {[%clk 0:02:45]} 10. Bxf4 {[%clk 0:02:45]}  Be6 {[%clk 0:02:46]} 11. Nd2 {[%clk 0:02:43]}  Nd7 {[%clk 0:02:45]} 12. Nc4 {[%clk 0:02:27]}  Nb6 {[%clk 0:02:42]} 13. b3 {[%clk 0:02:26]}  Nxc4 {[%clk 0:02:30]} 14. dxc4 {[%clk 0:02:25]}  d5 {[%clk 0:02:31]} 15. cxd5 {[%clk 0:02:20]}  cxd5 {[%clk 0:02:32]} 16. Qe2 {[%clk 0:01:59]}  d4 {[%clk 0:02:23]} 17. Rad1 {[%clk 0:01:51]}  Re8 {[%clk 0:02:20]} 18. c4 {[%clk 0:01:48]}  a5 {[%clk 0:02:18]} 19. a4 {[%clk 0:01:46]}  Qb6 {[%clk 0:02:17]} 20. Rd3 {[%clk 0:01:44]}  Bd6 {[%clk 0:02:10]} 21. e5 {[%clk 0:01:29]}  Be7 {[%clk 0:02:07]} 22. Ng4 {[%clk 0:01:12]}  Rab8 {[%clk 0:01:57]} 23. Rg3 {[%clk 0:01:09]}  Bxg4 {[%clk 0:01:46]} 24. Qxg4 {[%clk 0:01:08]}  Qg6 {[%clk 0:01:46]} 25. e6 {[%clk 0:00:49]}  fxe6 {[%clk 0:01:18]} 26. Qxg6 {[%clk 0:00:46]}  hxg6 {[%clk 0:01:19]} 27. Bxb8 {[%clk 0:00:45]}  Rxb8 {[%clk 0:01:20]} 28. Rxg6 {[%clk 0:00:44]}  Rxb3 {[%clk 0:01:18]} 29. Rxe6 {[%clk 0:00:44]}  Bf6 {[%clk 0:01:19]} 30. Ra6 {[%clk 0:00:32]}  Rb4 {[%clk 0:01:08]} 31. Rxa5 {[%clk 0:00:31]}  Rxc4 {[%clk 0:01:09]} 32. Ra8+ {[%clk 0:00:31]}  Kh7 {[%clk 0:01:09]} 33. a5 {[%clk 0:00:32]}  Ra4 {[%clk 0:01:06]} 34. a6 {[%clk 0:00:26]}  c4 {[%clk 0:01:06]} 35. Rc8 {[%clk 0:00:26]}  c3 {[%clk 0:01:06]} 36. Rc6 {[%clk 0:00:23]}  d3 {[%clk 0:01:05]} 37. Rd1 {[%clk 0:00:07]}  c2 {[%clk 0:00:52]} 38. Rxd3 {[%clk 0:00:06]}  Ra1+ {[%clk 0:00:52]} 39. Kf2 {[%clk 0:00:06]}  c1=Q {[%clk 0:00:52]} 40. Rxc1 {[%clk 0:00:06]}  Rxc1 {[%clk 0:00:52]} 41. Ra3 {[%clk 0:00:04]}  Rc8 {[%clk 0:00:52]} 42. Kf3 {[%clk 0:00:03]}  Bd4 {[%clk 0:00:51]} 43. g3 {[%clk 0:00:03]}  Kg6 {[%clk 0:00:50]} 44. h4 {[%clk 0:00:04]}  Rc7 {[%clk 0:00:49]} 45. Ra5 {[%clk 0:00:04]}  Ba7 {[%clk 0:00:48]} 46. Kg4 {[%clk 0:00:04]}  Rc4+ {[%clk 0:00:48]} 47. Kh3 {[%clk 0:00:04]}  Kf6 {[%clk 0:00:48]} 48. Ra3 {[%clk 0:00:04]}  Rc6 {[%clk 0:00:46]} 49. Rf3+ {[%clk 0:00:04]}  Kg6 {[%clk 0:00:46]} 50. Ra3 {[%clk 0:00:05]}  Kf7 {[%clk 0:00:40]} 51. Kg4 {[%clk 0:00:05]}  Ke7 {[%clk 0:00:40]} 52. h5 {[%clk 0:00:06]}  Kf7 {[%clk 0:00:38]} 53. Kh4 {[%clk 0:00:06]}  Kg8 {[%clk 0:00:39]} 54. Kg5 {[%clk 0:00:06]}  Kh7 {[%clk 0:00:39]} 55. Ra4 {[%clk 0:00:05]}  Rc5+ {[%clk 0:00:38]} 56. Kh4 {[%clk 0:00:05]}  Kh6 {[%clk 0:00:38]} 57. g4 {[%clk 0:00:05]}  Rb5 {[%clk 0:00:36]} 58. Rc4 {[%clk 0:00:05]}  Kh7 {[%clk 0:00:26]} 59. Rc7 {[%clk 0:00:04]}  Bf2+ {[%clk 0:00:26]} 60. Kh3 {[%clk 0:00:04]}  Ra5 {[%clk 0:00:24]} 61. Kg2 {[%clk 0:00:04]}  Bb6 {[%clk 0:00:22]} 62. Rc6 {[%clk 0:00:04]}  Rxa6 {[%clk 0:00:22]} 63. g5 {[%clk 0:00:04]}  Ra2+ {[%clk 0:00:22]} 64. Kf3 {[%clk 0:00:04]}  Bd4 {[%clk 0:00:22]} 65. Kg4 {[%clk 0:00:03]}  Ra4 {[%clk 0:00:22]} 66. Rc8 {[%clk 0:00:02]}  Bf6+ {[%clk 0:00:20]} 67. Kf5 {[%clk 0:00:02]}  Ra5+ {[%clk 0:00:21]} 68. Ke6 {[%clk 0:00:02]}  Rxg5 {[%clk 0:00:21]} 69. Kf7 {[%clk 0:00:02]}  Rxh5 {[%clk 0:00:21]} 70. Rc4 {[%clk 0:00:02]}  Rh4 {[%clk 0:00:20]} 71. Rc2 {[%clk 0:00:01]}  Kh6 {[%clk 0:00:21]} 72. Rg2 {[%clk 0:00:01]}  Kh5 {[%clk 0:00:21]} 73. Rg6 {[%clk 0:00:01]}  Rg4 {[%clk 0:00:20]} 74. Rxg4 {[%clk 0:00:01]}  Kxg4 {[%clk 0:00:21]} 75. Kg6 {[%clk 0:00:02]}  Kf4 {[%clk 0:00:21]} 76. Kh5 {[%clk 0:00:02]}  g5 {[%clk 0:00:21]} 0-1


[Site "https://www.chess.com"]

[Event "Titled Tuesday Blitz February 22 Late 2022"]
[White "Novikova, Galina"]
[Black "Vine, Elzbieta"]
[WhiteFideId "4157095"]
[BlackFideId "1119320"]
[WhiteElo "1863"]
[BlackElo "1876"]
[Result "1-0"]
[Round "08"]
[TimeControl "180+1"]
[Date "2022.02.23"]
[WhiteClock "0:02:00"]
[BlackClock "0:01:04"]

1. e4 {[%clk 0:03:00]}  c5 {[%clk 0:02:58]} 2. Nf3 {[%clk 0:03:00]}  a6 {[%clk 0:02:54]} 3. b4 {[%clk 0:03:00]}  cxb4 {[%clk 0:02:49]} 4. a3 {[%clk 0:03:00]}  bxa3 {[%clk 0:02:48]} 5. Nxa3 {[%clk 0:03:01]}  d6 {[%clk 0:02:46]} 6. d4 {[%clk 0:03:01]}  Nf6 {[%clk 0:02:44]} 7. Bd3 {[%clk 0:02:59]}  b5 {[%clk 0:02:41]} 8. Nxb5 {[%clk 0:02:59]}  Bb7 {[%clk 0:02:39]} 9. Nc3 {[%clk 0:02:56]}  Nc6 {[%clk 0:02:35]} 10. O-O {[%clk 0:02:54]}  e6 {[%clk 0:02:31]} 11. Qe2 {[%clk 0:02:52]}  Be7 {[%clk 0:02:31]} 12. Bxa6 {[%clk 0:02:47]}  Bxa6 {[%clk 0:02:19]} 13. Rxa6 {[%clk 0:02:46]}  Rxa6 {[%clk 0:02:11]} 14. Qxa6 {[%clk 0:02:47]}  Nb4 {[%clk 0:02:11]} 15. Qb5+ {[%clk 0:02:47]}  Qd7 {[%clk 0:02:07]} 16. Qxb4 {[%clk 0:02:47]}  O-O {[%clk 0:02:06]} 17. Qb5 {[%clk 0:02:36]}  Qc7 {[%clk 0:02:05]} 18. Bd2 {[%clk 0:02:27]}  Rb8 {[%clk 0:02:03]} 19. Qd3 {[%clk 0:02:28]}  Rc8 {[%clk 0:02:01]} 20. Rb1 {[%clk 0:02:25]}  h6 {[%clk 0:01:58]} 21. h3 {[%clk 0:02:25]}  Qc6 {[%clk 0:01:51]} 22. e5 {[%clk 0:02:23]}  Nd7 {[%clk 0:01:43]} 23. exd6 {[%clk 0:02:19]}  Bxd6 {[%clk 0:01:42]} 24. Ne4 {[%clk 0:02:18]}  Be7 {[%clk 0:01:36]} 25. c3 {[%clk 0:02:18]}  Nb6 {[%clk 0:01:34]} 26. Ne5 {[%clk 0:02:11]}  Qc7 {[%clk 0:01:30]} 27. Qf3 {[%clk 0:02:10]}  Nc4 {[%clk 0:01:28]} 28. Qxf7+ {[%clk 0:02:09]}  Kh7 {[%clk 0:01:26]} 29. Bxh6 {[%clk 0:02:09]}  Bf8 {[%clk 0:01:12]} 30. Nf6+ {[%clk 0:02:01]}  Kxh6 {[%clk 0:01:04]} 31. Qh5# {[%clk 0:02:00]} 1-0


[Site "https://www.chess.com"]

[Event "Titled Tuesday Blitz February 22 Late 2022"]
[White "Pesotskiy, Mikhail"]
[Black "volunteers1998"]
[WhiteFideId "34164453"]
[WhiteElo "2010"]
[BlackElo "2267"]
[Result "0-1"]
[Round "08"]
[TimeControl "180+1"]
[Date "2022.02.23"]
[WhiteClock "0:00:29"]
[BlackClock "0:00:58"]

1. d4 {[%clk 0:03:00]}  f5 {[%clk 0:02:59]} 2. c4 {[%clk 0:03:01]}  Nf6 {[%clk 0:02:57]} 3. Nc3 {[%clk 0:03:02]}  g6 {[%clk 0:02:56]} 4. g3 {[%clk 0:03:03]}  Bg7 {[%clk 0:02:57]} 5. Bg2 {[%clk 0:03:03]}  O-O {[%clk 0:02:57]} 6. Nf3 {[%clk 0:03:04]}  d6 {[%clk 0:02:57]} 7. O-O {[%clk 0:03:05]}  Nc6 {[%clk 0:02:57]} 8. d5 {[%clk 0:03:02]}  Ne5 {[%clk 0:02:55]} 9. Nxe5 {[%clk 0:02:54]}  dxe5 {[%clk 0:02:52]} 10. e4 {[%clk 0:02:55]}  f4 {[%clk 0:02:50]} 11. gxf4 {[%clk 0:02:55]}  exf4 {[%clk 0:02:49]} 12. Bxf4 {[%clk 0:02:52]}  Nxe4 {[%clk 0:02:46]} 13. Bg3 {[%clk 0:02:52]}  Nxc3 {[%clk 0:02:37]} 14. bxc3 {[%clk 0:02:52]}  Bxc3 {[%clk 0:02:37]} 15. Rc1 {[%clk 0:02:49]}  Bg7 {[%clk 0:02:36]} 16. Re1 {[%clk 0:02:44]}  Bf5 {[%clk 0:02:29]} 17. Qe2 {[%clk 0:02:39]}  Rf7 {[%clk 0:02:27]} 18. c5 {[%clk 0:02:16]}  Qd7 {[%clk 0:02:22]} 19. c6 {[%clk 0:02:10]}  bxc6 {[%clk 0:02:20]} 20. Rxc6 {[%clk 0:02:11]}  Rc8 {[%clk 0:02:11]} 21. Rec1 {[%clk 0:02:09]}  Bg4 {[%clk 0:02:05]} 22. Qc4 {[%clk 0:02:03]}  Bh3 {[%clk 0:02:01]} 23. Rxc7 {[%clk 0:02:01]}  Rxc7 {[%clk 0:02:00]} 24. Qxc7 {[%clk 0:02:02]}  Qxc7 {[%clk 0:01:58]} 25. Rxc7 {[%clk 0:02:02]}  Bxg2 {[%clk 0:01:55]} 26. Kxg2 {[%clk 0:02:03]}  Bd4 {[%clk 0:01:50]} 27. d6 {[%clk 0:01:45]}  exd6 {[%clk 0:01:48]} 28. Rxf7 {[%clk 0:01:46]}  Kxf7 {[%clk 0:01:47]} 29. Bxd6 {[%clk 0:01:46]}  Ke6 {[%clk 0:01:36]} 30. Bb8 {[%clk 0:01:45]}  Kf5 {[%clk 0:01:33]} 31. Kf3 {[%clk 0:01:44]}  Bb6 {[%clk 0:01:29]} 32. h3 {[%clk 0:01:42]}  Bc5 {[%clk 0:01:27]} 33. Bf4 {[%clk 0:01:39]}  Bxf2 {[%clk 0:01:24]} 34. Bb8 {[%clk 0:01:33]}  Bb6 {[%clk 0:01:22]} 35. Bd6 {[%clk 0:01:33]}  h6 {[%clk 0:01:22]} 36. Bf8 {[%clk 0:01:33]}  h5 {[%clk 0:01:21]} 37. Bd6 {[%clk 0:01:08]}  g5 {[%clk 0:01:20]} 38. a4 {[%clk 0:01:01]}  g4+ {[%clk 0:01:18]} 39. hxg4+ {[%clk 0:01:02]}  hxg4+ {[%clk 0:01:18]} 40. Ke2 {[%clk 0:01:03]}  Bd4 {[%clk 0:01:16]} 41. Kd3 {[%clk 0:00:56]}  Be5 {[%clk 0:01:15]} 42. Bc5 {[%clk 0:00:54]}  a6 {[%clk 0:01:15]} 43. Kc4 {[%clk 0:00:52]}  g3 {[%clk 0:01:15]} 44. a5 {[%clk 0:00:48]}  Ke4 {[%clk 0:01:14]} 45. Bg1 {[%clk 0:00:45]}  Bf4 {[%clk 0:01:13]} 46. Bc5 {[%clk 0:00:39]}  Be3 {[%clk 0:01:12]} 47. Bd6 {[%clk 0:00:39]}  g2 {[%clk 0:01:11]} 48. Bh2 {[%clk 0:00:40]}  Kf3 {[%clk 0:01:09]} 49. Kd5 {[%clk 0:00:39]}  Kg4 {[%clk 0:01:07]} 50. Kc6 {[%clk 0:00:28]}  Kh3 {[%clk 0:01:07]} 51. Bg1 {[%clk 0:00:29]}  Bxg1 {[%clk 0:01:06]} 52. Kb7 {[%clk 0:00:30]}  Bf2 {[%clk 0:01:04]} 53. Kxa6 {[%clk 0:00:31]}  g1=Q {[%clk 0:01:04]} 54. Kb7 {[%clk 0:00:32]}  Qb1+ {[%clk 0:01:02]} 55. Ka8 {[%clk 0:00:30]}  Qa2 {[%clk 0:01:01]} 56. a6 {[%clk 0:00:29]}  Qxa6+ {[%clk 0:01:00]} 57. Kb8 {[%clk 0:00:30]}  Qa7+ {[%clk 0:01:00]} 58. Kc8 {[%clk 0:00:29]}  Kg4 {[%clk 0:01:00]} 59. Kd8 {[%clk 0:00:29]}  Kf5 {[%clk 0:01:00]} 60. Kc8 {[%clk 0:00:28]}  Ke6 {[%clk 0:00:59]} 61. Kd8 {[%clk 0:00:29]}  Qb8# {[%clk 0:00:58]} 0-1


[Site "https://www.chess.com"]

[Event "Titled Tuesday Blitz February 22 Late 2022"]
[White "Pichot, Alan"]
[Black "Carbone, Diego"]
[WhiteFideId "110973"]
[BlackFideId "3002179"]
[WhiteElo "2543"]
[BlackElo "2199"]
[Result "1-0"]
[Round "08"]
[TimeControl "180+1"]
[Date "2022.02.22"]
[WhiteClock "0:01:28"]
[BlackClock "0:00:16"]

1. d4 {[%clk 0:03:00]}  Nf6 {[%clk 0:02:50]} 2. Nf3 {[%clk 0:03:00]}  g6 {[%clk 0:02:49]} 3. Bf4 {[%clk 0:03:01]}  Bg7 {[%clk 0:02:49]} 4. h3 {[%clk 0:03:01]}  O-O {[%clk 0:02:49]} 5. Bh2 {[%clk 0:03:02]}  d6 {[%clk 0:02:49]} 6. e3 {[%clk 0:03:02]}  Nbd7 {[%clk 0:02:48]} 7. c3 {[%clk 0:03:03]}  b6 {[%clk 0:02:49]} 8. Nbd2 {[%clk 0:03:03]}  Bb7 {[%clk 0:02:49]} 9. a4 {[%clk 0:03:04]}  a5 {[%clk 0:02:49]} 10. Bb5 {[%clk 0:03:02]}  Re8 {[%clk 0:02:47]} 11. O-O {[%clk 0:03:03]}  Ne4 {[%clk 0:02:40]} 12. Nxe4 {[%clk 0:02:55]}  Bxe4 {[%clk 0:02:41]} 13. Nd2 {[%clk 0:02:55]}  Bb7 {[%clk 0:02:19]} 14. e4 {[%clk 0:02:53]}  c6 {[%clk 0:02:16]} 15. Bd3 {[%clk 0:02:52]}  e5 {[%clk 0:02:16]} 16. dxe5 {[%clk 0:02:48]}  Nxe5 {[%clk 0:02:17]} 17. Be2 {[%clk 0:02:45]}  d5 {[%clk 0:02:10]} 18. Qb3 {[%clk 0:02:37]}  dxe4 {[%clk 0:02:03]} 19. Nxe4 {[%clk 0:02:38]}  c5 {[%clk 0:02:03]} 20. Rad1 {[%clk 0:02:36]}  Qc7 {[%clk 0:01:28]} 21. Nd6 {[%clk 0:02:30]}  Qc6 {[%clk 0:01:02]} 22. f3 {[%clk 0:02:16]}  Red8 {[%clk 0:00:52]} 23. Bxe5 {[%clk 0:02:06]}  Bxe5 {[%clk 0:00:39]} 24. Nxf7 {[%clk 0:02:07]}  c4 {[%clk 0:00:32]} 25. Qxc4 {[%clk 0:01:55]}  Qxc4 {[%clk 0:00:31]} 26. Bxc4 {[%clk 0:01:56]}  Rxd1 {[%clk 0:00:28]} 27. Nxe5+ {[%clk 0:01:44]}  Rd5 {[%clk 0:00:28]} 28. Rd1 {[%clk 0:01:40]}  Rd8 {[%clk 0:00:28]} 29. Bxd5+ {[%clk 0:01:39]}  Rxd5 {[%clk 0:00:26]} 30. Rxd5 {[%clk 0:01:40]}  Bxd5 {[%clk 0:00:27]} 31. Nd7 {[%clk 0:01:40]}  Bc6 {[%clk 0:00:22]} 32. Nxb6 {[%clk 0:01:40]}  Kf7 {[%clk 0:00:23]} 33. b4 {[%clk 0:01:40]}  axb4 {[%clk 0:00:17]} 34. cxb4 {[%clk 0:01:41]}  Ke6 {[%clk 0:00:17]} 35. b5 {[%clk 0:01:41]}  Be8 {[%clk 0:00:15]} 36. Kf2 {[%clk 0:01:31]}  Kd6 {[%clk 0:00:15]} 37. Nc4+ {[%clk 0:01:28]}  Kc5 {[%clk 0:00:16]} 38. Ne5 {[%clk 0:01:28]}  Kb4 {[%clk 0:00:16]} 39. b6 {[%clk 0:01:28]} 1-0


[Site "https://www.chess.com"]

[Event "Titled Tuesday Blitz February 22 Late 2022"]
[White "Qashashvili, Alexandre"]
[Black "Domingo Nunez, Alejandro"]
[WhiteFideId "13600842"]
[BlackFideId "22245561"]
[WhiteElo "2316"]
[BlackElo "2215"]
[Result "0-1"]
[Round "08"]
[TimeControl "180+1"]
[Date "2022.02.23"]
[WhiteClock "0:01:26"]
[BlackClock "0:01:31"]

1. e4 {[%clk 0:02:53]}  g6 {[%clk 0:03:00]} 2. Nc3 {[%clk 0:02:52]}  Bg7 {[%clk 0:03:00]} 3. Nf3 {[%clk 0:02:50]}  c6 {[%clk 0:02:59]} 4. d4 {[%clk 0:02:50]}  d5 {[%clk 0:02:59]} 5. exd5 {[%clk 0:02:50]}  cxd5 {[%clk 0:02:59]} 6. Be3 {[%clk 0:02:50]}  Nc6 {[%clk 0:02:59]} 7. Qd2 {[%clk 0:02:50]}  Bg4 {[%clk 0:02:59]} 8. Be2 {[%clk 0:02:50]}  Nf6 {[%clk 0:02:54]} 9. h3 {[%clk 0:02:51]}  Bxf3 {[%clk 0:02:52]} 10. Bxf3 {[%clk 0:02:52]}  O-O {[%clk 0:02:52]} 11. Bh6 {[%clk 0:02:52]}  Bxh6 {[%clk 0:02:50]} 12. Qxh6 {[%clk 0:02:51]}  Nxd4 {[%clk 0:02:51]} 13. Bd1 {[%clk 0:02:47]}  Qb6 {[%clk 0:02:49]} 14. O-O {[%clk 0:02:47]}  Qxb2 {[%clk 0:02:48]} 15. Ne2 {[%clk 0:02:42]}  Qxa1 {[%clk 0:02:46]} 16. Ng3 {[%clk 0:02:39]}  Qc3 {[%clk 0:02:39]} 17. h4 {[%clk 0:02:38]}  Ne6 {[%clk 0:02:19]} 18. h5 {[%clk 0:02:34]}  Nxh5 {[%clk 0:02:17]} 19. Bxh5 {[%clk 0:02:33]}  gxh5 {[%clk 0:02:17]} 20. Nf5 {[%clk 0:02:21]}  Qf6 {[%clk 0:02:06]} 21. Qxh5 {[%clk 0:02:20]}  Kh8 {[%clk 0:02:07]} 22. Re1 {[%clk 0:02:10]}  Rg8 {[%clk 0:02:03]} 23. Ng3 {[%clk 0:01:59]}  Nf4 {[%clk 0:01:49]} 24. Qf3 {[%clk 0:01:51]}  e6 {[%clk 0:01:43]} 25. c4 {[%clk 0:01:43]}  Nh3+ {[%clk 0:01:41]} 26. Kh2 {[%clk 0:01:41]}  Qxf3 {[%clk 0:01:41]} 27. gxf3 {[%clk 0:01:42]}  Ng5 {[%clk 0:01:41]} 28. Kg2 {[%clk 0:01:40]}  Rad8 {[%clk 0:01:32]} 29. cxd5 {[%clk 0:01:38]}  exd5 {[%clk 0:01:32]} 30. Re7 {[%clk 0:01:29]}  d4 {[%clk 0:01:32]} 31. Kf1 {[%clk 0:01:29]}  d3 {[%clk 0:01:31]} 32. Ke1 {[%clk 0:01:29]}  Nxf3+ {[%clk 0:01:31]} 33. Kd1 {[%clk 0:01:29]}  Rge8 {[%clk 0:01:31]} 34. Nf5 {[%clk 0:01:25]}  Rxe7 {[%clk 0:01:30]} 35. Nxe7 {[%clk 0:01:26]}  Re8 {[%clk 0:01:31]} 0-1


[Site "https://www.chess.com"]

[Event "Titled Tuesday Blitz February 22 Late 2022"]
[White "Sadhwani, Raunak"]
[Black "Vidit, Santosh Gujrathi"]
[WhiteFideId "35093487"]
[BlackFideId "5029465"]
[WhiteElo "2616"]
[BlackElo "2654"]
[Result "1-0"]
[Round "08"]
[TimeControl "180+1"]
[Date "2022.02.22"]
[WhiteClock "0:00:09"]
[BlackClock "0:00:01"]

1. d4 {[%clk 0:03:00]}  Nf6 {[%clk 0:02:59]} 2. Nf3 {[%clk 0:03:01]}  d5 {[%clk 0:02:59]} 3. Bf4 {[%clk 0:03:01]}  c5 {[%clk 0:02:59]} 4. e3 {[%clk 0:03:01]}  e6 {[%clk 0:03:00]} 5. Nbd2 {[%clk 0:03:00]}  Qb6 {[%clk 0:03:00]} 6. Rb1 {[%clk 0:02:59]}  Bd6 {[%clk 0:03:00]} 7. dxc5 {[%clk 0:02:59]}  Qxc5 {[%clk 0:02:57]} 8. b4 {[%clk 0:02:59]}  Qc7 {[%clk 0:02:56]} 9. Bxd6 {[%clk 0:03:00]}  Qxd6 {[%clk 0:02:57]} 10. c4 {[%clk 0:03:00]}  dxc4 {[%clk 0:02:55]} 11. Nxc4 {[%clk 0:02:59]}  Qxd1+ {[%clk 0:02:54]} 12. Rxd1 {[%clk 0:02:59]}  Ke7 {[%clk 0:02:53]} 13. Be2 {[%clk 0:02:56]}  Nc6 {[%clk 0:02:34]} 14. a3 {[%clk 0:02:49]}  Rd8 {[%clk 0:02:17]} 15. Rxd8 {[%clk 0:02:39]}  Nxd8 {[%clk 0:02:16]} 16. Nfe5 {[%clk 0:02:39]}  Bd7 {[%clk 0:02:08]} 17. Nxd7 {[%clk 0:02:33]}  Nxd7 {[%clk 0:02:08]} 18. Kd2 {[%clk 0:02:33]}  Rc8 {[%clk 0:02:07]} 19. Rc1 {[%clk 0:02:34]}  Nf6 {[%clk 0:01:52]} 20. Bf3 {[%clk 0:02:28]}  Ne8 {[%clk 0:01:52]} 21. Na5 {[%clk 0:02:19]}  Rxc1 {[%clk 0:01:50]} 22. Kxc1 {[%clk 0:02:20]}  Nd6 {[%clk 0:01:49]} 23. Kc2 {[%clk 0:02:15]}  b6 {[%clk 0:01:47]} 24. Nb3 {[%clk 0:02:12]}  f5 {[%clk 0:01:33]} 25. a4 {[%clk 0:02:11]}  g5 {[%clk 0:01:31]} 26. h3 {[%clk 0:02:08]}  Kf6 {[%clk 0:01:11]} 27. b5 {[%clk 0:01:51]}  e5 {[%clk 0:01:04]} 28. Bd5 {[%clk 0:01:49]}  h5 {[%clk 0:01:01]} 29. Kc3 {[%clk 0:01:37]}  h4 {[%clk 0:00:59]} 30. Kb4 {[%clk 0:01:36]}  g4 {[%clk 0:00:59]} 31. a5 {[%clk 0:01:24]}  Ne6 {[%clk 0:00:51]} 32. Nd2 {[%clk 0:00:28]}  Ng5 {[%clk 0:00:40]} 33. hxg4 {[%clk 0:00:27]}  fxg4 {[%clk 0:00:40]} 34. Bc6 {[%clk 0:00:22]}  e4 {[%clk 0:00:24]} 35. Nf1 {[%clk 0:00:17]}  h3 {[%clk 0:00:19]} 36. gxh3 {[%clk 0:00:18]}  gxh3 {[%clk 0:00:20]} 37. axb6 {[%clk 0:00:12]}  axb6 {[%clk 0:00:20]} 38. Kc3 {[%clk 0:00:11]}  Ke5 {[%clk 0:00:20]} 39. Bd7 {[%clk 0:00:12]}  Nf5 {[%clk 0:00:16]} 40. Bxf5 {[%clk 0:00:12]}  Kxf5 {[%clk 0:00:16]} 41. Kd4 {[%clk 0:00:12]}  Kg4 {[%clk 0:00:04]} 42. Nh2+ {[%clk 0:00:11]}  Kf5 {[%clk 0:00:05]} 43. Kd5 {[%clk 0:00:11]}  Nf3 {[%clk 0:00:04]} 44. Nf1 {[%clk 0:00:11]}  Nd2 {[%clk 0:00:02]} 45. Nh2 {[%clk 0:00:10]}  Nf3 {[%clk 0:00:01]} 46. Nf1 {[%clk 0:00:10]}  Ng5 {[%clk 0:00:01]} 47. Kc6 {[%clk 0:00:10]}  Kg4 {[%clk 0:00:01]} 48. Nh2+ {[%clk 0:00:09]} 1-0


[Site "https://www.chess.com"]

[Event "Titled Tuesday Blitz February 22 Late 2022"]
[White "Salimova, Nurgyul"]
[Black "Warakomska, Anna"]
[WhiteFideId "2915138"]
[BlackFideId "1130790"]
[WhiteElo "2185"]
[BlackElo "2062"]
[Result "1-0"]
[Round "08"]
[TimeControl "180+1"]
[Date "2022.02.23"]
[WhiteClock "0:02:07"]
[BlackClock "0:00:24"]

1. d4 {[%clk 0:03:00]}  d5 {[%clk 0:02:16]} 2. Nf3 {[%clk 0:02:58]}  Nf6 {[%clk 0:02:16]} 3. Bf4 {[%clk 0:02:59]}  c5 {[%clk 0:02:13]} 4. e3 {[%clk 0:02:59]}  Nc6 {[%clk 0:02:10]} 5. Nbd2 {[%clk 0:02:59]}  e6 {[%clk 0:02:07]} 6. c3 {[%clk 0:02:58]}  Bd6 {[%clk 0:02:07]} 7. Bg3 {[%clk 0:02:57]}  O-O {[%clk 0:02:04]} 8. Bd3 {[%clk 0:02:50]}  Qe7 {[%clk 0:01:45]} 9. Ne5 {[%clk 0:02:48]}  Nd7 {[%clk 0:01:31]} 10. f4 {[%clk 0:02:31]}  f5 {[%clk 0:01:12]} 11. O-O {[%clk 0:02:24]}  Nf6 {[%clk 0:01:07]} 12. Bh4 {[%clk 0:02:23]}  Bd7 {[%clk 0:00:57]} 13. Kh1 {[%clk 0:02:20]}  Be8 {[%clk 0:00:57]} 14. g4 {[%clk 0:02:16]}  fxg4 {[%clk 0:00:29]} 15. Nxg4 {[%clk 0:02:09]}  Qf7 {[%clk 0:00:27]} 16. Bxf6 {[%clk 0:02:08]}  h5 {[%clk 0:00:24]} 17. Nh6+ {[%clk 0:02:07]}  gxh6 {[%clk 0:00:24]} 18. Rg1+ {[%clk 0:02:07]} 1-0


[Site "https://www.chess.com"]

[Event "Titled Tuesday Blitz February 22 Late 2022"]
[White "Samarth, J Rao"]
[Black "Fiorito, Fabian"]
[WhiteFideId "46652370"]
[BlackFideId "100200"]
[WhiteElo "1514"]
[BlackElo "2395"]
[Result "1-0"]
[Round "08"]
[TimeControl "180+1"]
[Date "2022.02.23"]
[WhiteClock "0:01:35"]
[BlackClock "0:00:31"]

1. c4 {[%clk 0:03:00]}  c6 {[%clk 0:03:00]} 2. e4 {[%clk 0:03:00]}  d5 {[%clk 0:03:00]} 3. cxd5 {[%clk 0:02:59]}  cxd5 {[%clk 0:03:01]} 4. exd5 {[%clk 0:03:00]}  Nf6 {[%clk 0:03:01]} 5. Qa4+ {[%clk 0:02:59]}  Bd7 {[%clk 0:02:58]} 6. Qb3 {[%clk 0:02:59]}  b6 {[%clk 0:02:37]} 7. Nc3 {[%clk 0:02:57]}  g6 {[%clk 0:02:36]} 8. Nf3 {[%clk 0:02:54]}  Bg7 {[%clk 0:02:36]} 9. d4 {[%clk 0:02:54]}  O-O {[%clk 0:02:37]} 10. Bf4 {[%clk 0:02:53]}  Nh5 {[%clk 0:02:35]} 11. Be5 {[%clk 0:02:53]}  Bg4 {[%clk 0:02:31]} 12. Bxg7 {[%clk 0:02:50]}  Nxg7 {[%clk 0:02:32]} 13. Ne5 {[%clk 0:02:50]}  Bd7 {[%clk 0:02:29]} 14. h4 {[%clk 0:02:44]}  Nf5 {[%clk 0:02:24]} 15. O-O-O {[%clk 0:02:38]}  a5 {[%clk 0:02:13]} 16. g4 {[%clk 0:02:37]}  Nd6 {[%clk 0:02:13]} 17. h5 {[%clk 0:02:31]}  Na6 {[%clk 0:02:03]} 18. hxg6 {[%clk 0:02:21]}  fxg6 {[%clk 0:02:04]} 19. f3 {[%clk 0:02:08]}  Nb4 {[%clk 0:02:02]} 20. a3 {[%clk 0:02:07]}  Na6 {[%clk 0:01:47]} 21. Qc2 {[%clk 0:02:07]}  Rf6 {[%clk 0:01:40]} 22. Qh2 {[%clk 0:02:04]}  h5 {[%clk 0:01:05]} 23. gxh5 {[%clk 0:02:01]}  g5 {[%clk 0:01:05]} 24. Bd3 {[%clk 0:02:00]}  Bf5 {[%clk 0:01:04]} 25. Bxa6 {[%clk 0:01:51]}  Rxa6 {[%clk 0:01:02]} 26. Rdg1 {[%clk 0:01:52]}  Nf7 {[%clk 0:01:00]} 27. Nxf7 {[%clk 0:01:50]}  Kxf7 {[%clk 0:01:01]} 28. Rxg5 {[%clk 0:01:50]}  b5 {[%clk 0:01:02]} 29. Qe5 {[%clk 0:01:44]}  b4 {[%clk 0:00:46]} 30. Rhg1 {[%clk 0:01:35]}  Qb6 {[%clk 0:00:31]} 31. Rg7+ {[%clk 0:01:34]}  Ke8 {[%clk 0:00:31]} 32. Qxe7# {[%clk 0:01:35]} 1-0


[Site "https://www.chess.com"]